bitfinex/quotes_BTCUSD_20240715
["timestamp","ask_amount","ask_price","bid_price","bid_amount"]
[1721011618236,1.04130843,62497.0,62496.0,0.35902]
[1721011618441,1.05530843,62497.0,62496.0,0.35902]
[1721011618763,1.16083927,62497.0,62496.0,0.35902]
[1721011619554,1.14752638,62497.0,62496.0,0.35902]
[1721011619752,1.14683935,62497.0,62496.0,0.35902]
[1721011620111,1.16083935,62497.0,62496.0,0.35902]
[1721011620524,1.16083935,62497.0,62496.0,0.32002]
[1721011620730,2.27483935,62497.0,62496.0,0.32002]
[1721011620972,1.14683935,62497.0,62496.0,0.32002]
[1721011621144,1.21106435,62497.0,62496.0,0.32002]
[1721011622203,1.27394076,62497.0,62496.0,0.32002]
[1721011622784,2.40194076,62497.0,62496.0,0.32002]
[1721011622995,1.27394076,62497.0,62496.0,0.32002]
[1721011623777,1.28928537,62497.0,62496.0,0.32002]
[1721011624388,1.40114862,62497.0,62496.0,0.32002]
[1721011624583,1.44290326,62497.0,62496.0,0.32002]
[1721011624782,1.46590326,62497.0,62496.0,0.31996893]
[1721011625185,2.65490326,62497.0,62496.0,0.31996893]
[1721011625387,2.95836998,62497.0,62496.0,0.08664775]
[1721011625588,0.50287215,62469.0,62468.0,0.000913]
[1721011625790,0.90402006,62469.0,62468.0,0.000913]
[1721011625989,1.00402006,62469.0,62468.0,0.321073]
[1721011626590,1.02074345,62469.0,62468.0,0.321073]
[1721011627474,0.96074345,62469.0,62468.0,0.360073]
[1721011627668,0.96074345,62469.0,62468.0,0.38365263]
[1721011628071,0.46074345,62469.0,62468.0,0.66830802]
[1721011628769,0.46074226,62469.0,62468.0,0.66830802]
[1721011629170,0.46054972,62469.0,62468.0,0.66830802]
[1721011629572,0.46054972,62469.0,62468.0,0.46830802]
[1721011629974,0.45787011,62469.0,62468.0,0.70070802]
[1721011630176,0.45787011,62469.0,62468.0,0.73210802]
[1721011630723,0.45787011,62469.0,62468.0,0.8131604]
[1721011630951,0.13003971,62469.0,62468.0,0.8131604]
[1721011631150,0.01672339,62469.0,62468.0,0.87048079]
[1721011631724,0.01672339,62469.0,62468.0,0.8131604]
[1721011632629,0.01672339,62469.0,62468.0,0.87048079]
[1721011633187,0.01672339,62469.0,62468.0,1.03908079]
[1721011633533,0.01672339,62469.0,62468.0,1.13908079]
[1721011633872,0.00306353,62489.0,62480.0,0.50023502]
[1721011634077,0.00306353,62489.0,62488.0,1.05310779]
[1721011634078,0.33089393,62489.0,62488.0,1.05310779]
[1721011634441,0.3278304,62489.0,62488.0,1.82128479]
[1721011634650,1e-08,62511.0,62510.0,0.97205541]
[1721011634829,1e-08,62511.0,62510.0,1.37714779]
[1721011634830,0.47180441,62511.0,62510.0,1.37714779]
[1721011636457,0.47180441,62511.0,62510.0,1.29609541]
[1721011637084,0.47180441,62511.0,62510.0,1.13159541]
[1721011637687,0.32783041,62511.0,62510.0,1.23159541]
[1721011637892,0.47180441,62511.0,62510.0,1.23159541]
[1721011638184,0.57180441,62511.0,62510.0,1.23159541]
[1721011638809,0.57180441,62511.0,62510.0,1.13159541]
[1721011638988,0.57180441,62511.0,62510.0,0.82427502]
[1721011639186,0.57180441,62511.0,62510.0,1.05019541]
[1721011640030,0.24397401,62511.0,62510.0,1.05019541]
[1721011640227,0.24397401,62511.0,62510.0,0.88159541]
[1721011640434,0.24665362,62511.0,62510.0,0.59569539]
[1721011640631,0.64397401,62511.0,62510.0,0.82427502]
[1721011641955,0.64397401,62511.0,62510.0,1.05019541]
[1721011642164,0.50000001,62511.0,62510.0,1.49469541]
[1721011642371,0.50000001,62511.0,62510.0,1.31769541]
[1721011642747,0.64397401,62511.0,62510.0,1.31769541]
[1721011643917,0.64397401,62511.0,62510.0,1.51769541]
[1721011644232,0.64397401,62511.0,62510.0,1.31769541]
[1721011644993,0.64397401,62511.0,62510.0,1.05019541]
[1721011645251,0.64397401,62511.0,62510.0,1.15019541]
[1721011646186,0.50000001,62511.0,62510.0,1.15019541]
[1721011646420,0.50000001,62511.0,62510.0,1.80512441]
[1721011646630,0.50000001,62511.0,62510.0,1.51717141]
[1721011647458,0.50000001,62511.0,62510.0,1.37319541]
[1721011648404,0.50000001,62511.0,62510.0,1.17319541]
[1721011648811,0.64397401,62511.0,62510.0,1.17319541]
[1721011650168,0.50000001,62511.0,62510.0,1.17319541]
[1721011650375,0.50000001,62511.0,62510.0,1.37319541]
[1721011650546,0.50000001,62511.0,62510.0,1.51717141]
[1721011650721,0.50000001,62511.0,62510.0,1.61717141]
[1721011651890,0.50000001,62511.0,62510.0,1.47319541]
[1721011652403,0.50000001,62511.0,62510.0,1.61717141]
[1721011652564,0.50000001,62511.0,62510.0,2.33607741]
[1721011653810,0.40000001,62511.0,62510.0,2.33607741]
[1721011660649,0.08016674,62561.0,62544.0,0.148]
[1721011660814,0.00835,62561.0,62544.0,1.67858307]
[1721011661010,0.00835,62561.0,62544.0,2.47955979]
[1721011661224,0.00835,62561.0,62544.0,1.33106779]
[1721011661424,0.00835,62561.0,62544.0,1.53106779]
[1721011661625,0.00835,62561.0,62544.0,2.25055979]
[1721011661828,0.00835,62561.0,62544.0,2.05466279]
[1721011662024,0.00835,62561.0,62544.0,1.78986579]
[1721011662251,0.00835,62561.0,62544.0,2.36545979]
[1721011662448,0.00835,62561.0,62544.0,2.65325679]
[1721011663612,0.00835,62561.0,62544.0,2.36545979]
[1721011663846,0.0611,62553.0,62544.0,1.55406779]
[1721011664014,0.0611,62553.0,62544.0,1.69796579]
[1721011664546,0.0611,62553.0,62544.0,1.25406779]
[1721011664775,0.0611,62553.0,62544.0,1.15001541]
[1721011665616,0.0611,62553.0,62544.0,1.49391341]
[1721011666018,0.0611,62553.0,62544.0,1.35001541]
[1721011666420,0.0611,62553.0,62544.0,1.45406779]
[1721011666865,0.0611,62553.0,62544.0,1.59796579]
[1721011667199,0.1,62554.0,62544.0,1.59796579]
[1721011667399,0.0655,62558.0,62544.0,1.59796579]
[1721011667574,0.0655,62558.0,62544.0,1.45406779]
[1721011667990,0.0655,62558.0,62544.0,1.59796579]
[1721011668161,0.0655,62558.0,62544.0,1.88576279]
[1721011668745,0.0655,62558.0,62544.0,2.36545979]
[1721011669752,0.1,62559.0,62544.0,2.36545979]
[1721011669952,0.00834,62560.0,62544.0,2.65325679]
[1721011670165,1e-08,62545.0,62544.0,2.94105379]
[1721011670360,1e-08,62545.0,62544.0,3.09105379]
[1721011670539,1e-08,62545.0,62544.0,2.65325679]
[1721011670739,1e-08,62545.0,62544.0,2.36545979]
[1721011672983,1e-08,62545.0,62544.0,2.80325679]
[1721011673164,0.00834,62560.0,62559.0,1.17001941]
[1721011673359,0.00834,62560.0,62559.0,1.88558979]
[1721011673660,0.40834,62560.0,62559.0,2.27331779]
[1721011674461,0.40834,62560.0,62559.0,1.98558979]
[1721011674663,0.40834,62560.0,62559.0,2.27331779]
[1721011675168,0.40834,62560.0,62559.0,2.36521779]
[1721011675370,0.40834,62560.0,62559.0,2.65294579]
[1721011675574,0.40834,62560.0,62559.0,2.88194579]
[1721011675575,0.00834,62560.0,62559.0,2.88194579]
[1721011676244,0.002,62569.0,62568.0,1.52453539]
[1721011676446,0.002,62569.0,62568.0,2.47979641]
[1721011677070,0.40834,62574.0,62573.0,1.98497941]
[1721011677316,0.00835,62586.0,62582.0,0.600033]
[1721011677500,0.00835,62608.0,62607.0,0.72615541]
[1721011677642,0.00835,62608.0,62607.0,1.23074779]
[1721011677830,0.00835,62608.0,62607.0,1.25374779]
[1721011678032,0.00835,62608.0,62607.0,1.27269541]
[1721011678276,0.00835,62608.0,62607.0,1.24969541]
[1721011678884,0.00835,62608.0,62607.0,1.04969541]
[1721011680282,0.00835,62608.0,62607.0,1.09237502]
[1721011680489,0.00835,62608.0,62607.0,0.99237502]
[1721011680684,0.00835,62608.0,62607.0,1.04969541]
[1721011680999,0.00835,62608.0,62607.0,1.14969541]
[1721011681202,0.00835,62608.0,62607.0,1.17269541]
[1721011681419,0.40835,62608.0,62607.0,1.17269541]
[1721011681584,0.50835,62608.0,62607.0,1.17269541]
[1721011681965,0.50835,62608.0,62607.0,1.04969541]
[1721011682768,0.57692961,62608.0,62607.0,0.99237502]
[1721011682967,0.57692961,62608.0,62596.0,0.1]
[1721011682968,0.06,62597.0,62596.0,0.08465539]
[1721011683156,0.06,62597.0,62581.0,0.1]
[1721011683157,0.56857961,62591.0,62590.0,0.08465539]
[1721011683355,0.1456,62591.0,62590.0,0.63277502]
[1721011683605,0.2456,62591.0,62590.0,0.63277502]
[1721011683811,0.24827961,62591.0,62590.0,0.40419539]
[1721011684374,0.2456,62591.0,62590.0,0.80147502]
[1721011684651,0.2456,62591.0,62590.0,0.63277502]
[1721011685379,0.2456,62591.0,62590.0,0.85879541]
[1721011685380,0.1,62591.0,62590.0,0.85879541]
[1721011685687,0.7927304,62597.0,62590.0,0.85879541]
[1721011685688,0.1,62596.0,62595.0,0.26123502]
[1721011685892,0.1,62596.0,62595.0,0.8617974]
[1721011686367,0.1,62596.0,62595.0,1.0304974]
[1721011687975,0.4,62597.0,62596.0,0.37055541]
[1721011688198,0.4,62597.0,62596.0,0.80144502]
[1721011688364,0.4,62597.0,62596.0,0.63274502]
[1721011688812,0.40267961,62597.0,62596.0,0.63274502]
[1721011689622,0.50267961,62597.0,62596.0,0.63274502]
[1721011689997,0.50267961,62597.0,62596.0,0.40416539]
[1721011690201,0.58367961,62597.0,62596.0,0.43274502]
[1721011690448,0.58367961,62597.0,62596.0,0.63274502]
[1721011690625,0.581,62597.0,62596.0,0.63274502]
[1721011690828,0.5,62597.0,62596.0,0.63274502]
[1721011691276,0.37,62597.0,62596.0,0.63274502]
[1721011691456,0.37267961,62597.0,62596.0,0.63274502]
[1721011691657,0.37,62597.0,62596.0,0.63274502]
[1721011691981,0.37,62597.0,62596.0,0.85876541]
[1721011692118,0.38672339,62597.0,62596.0,0.85876541]
[1721011692324,0.38672339,62597.0,62596.0,0.95876541]
[1721011692526,0.28672339,62597.0,62596.0,1.08176541]
[1721011694438,0.28672339,62597.0,62596.0,2.00066041]
[1721011694720,0.00835,62608.0,62607.0,1.23100841]
[1721011694891,0.00835,62608.0,62607.0,2.37572479]
[1721011695144,0.00835,62608.0,62607.0,2.66323179]
[1721011695449,0.01672339,62637.0,62607.0,2.66323179]
[1721011695450,0.002,62649.0,62628.0,1.26050278]
[1721011695583,0.002,62649.0,62628.0,1.79377379]
[1721011695785,0.002,62649.0,62628.0,1.74177379]
[1721011695987,0.00267961,62647.0,62628.0,1.31065779]
[1721011696193,0.00467961,62649.0,62628.0,1.31065779]
[1721011696826,0.002,62649.0,62628.0,1.51065779]
[1721011697043,0.002,62649.0,62628.0,1.65436279]
[1721011697243,0.002,62649.0,62628.0,2.22918479]
[1721011697453,0.002,62649.0,62628.0,1.94177379]
[1721011697900,0.002,62649.0,62628.0,2.22918479]
[1721011698256,0.002,62649.0,62628.0,1.51065779]
[1721011698456,0.002,62649.0,62628.0,1.65436279]
[1721011698657,0.3278304,62648.0,62628.0,1.51065779]
[1721011699007,0.00267961,62642.0,62628.0,1.31065779]
[1721011699142,0.3278304,62648.0,62628.0,1.02960541]
[1721011699143,0.00350961,62645.0,62628.0,1.02960541]
[1721011699342,0.0763,62638.0,62628.0,1.00660541]
[1721011699566,0.0664,62632.0,62628.0,1.00660541]
[1721011699771,0.0664,62632.0,62628.0,0.40400539]
[1721011699772,0.00467961,62629.0,62628.0,0.40400539]
[1721011699968,0.33251001,62629.0,62628.0,0.40400539]
[1721011700219,0.63064001,62629.0,62628.0,0.31935]
[1721011700402,0.57064001,62629.0,62628.0,0.31935]
[1721011700839,0.24280961,62629.0,62628.0,0.31935]
[1721011701306,0.00283,62629.0,62628.0,0.78377844]
[1721011701506,0.00283,62629.0,62628.0,1.38161041]
[1721011701722,0.00283,62629.0,62628.0,1.66902141]
[1721011701945,0.00283,62629.0,62628.0,2.49203241]
[1721011702152,0.002,62649.0,62644.0,1.23092341]
[1721011702387,0.4,62648.0,62644.0,1.43123579]
[1721011702884,0.4,62648.0,62644.0,1.31056779]
[1721011704138,0.37083,62648.0,62647.0,0.73925541]
[1721011704364,0.37083,62648.0,62647.0,0.76225541]
[1721011704597,0.37083,62648.0,62647.0,1.08150541]
[1721011705092,0.37083,62648.0,62647.0,1.28150541]
[1721011705793,0.37083,62648.0,62647.0,1.99981541]
[1721011706049,0.37083,62648.0,62647.0,1.42516741]
[1721011706290,0.37083,62648.0,62647.0,1.71249141]
[1721011706524,0.37083,62648.0,62647.0,1.79389141]
[1721011706784,0.37083,62648.0,62647.0,2.08121541]
[1721011707026,0.37083,62648.0,62647.0,1.79389141]
[1721011708002,0.37083,62648.0,62647.0,1.50656741]
[1721011708469,0.37083,62648.0,62647.0,2.08121541]
[1721011709475,0.37083,62648.0,62647.0,2.36853941]
[1721011710004,0.37083,62648.0,62647.0,2.08121541]
[1721011710515,0.37083,62648.0,62647.0,2.36853941]
[1721011710524,0.17844084,62648.0,62647.0,2.36853941]
[1721011710719,0.002,62669.0,62667.0,1.54340341]
[1721011710934,0.002,62669.0,62667.0,2.23083779]
[1721011711290,0.15363,62708.0,62688.0,1.03082341]
[1721011711526,0.15363,62708.0,62688.0,1.91805179]
[1721011711751,0.15363,62708.0,62688.0,1.98275179]
[1721011711952,0.33051001,62703.0,62688.0,1.02929541]
[1721011712193,0.15363,62708.0,62688.0,1.02929541]
[1721011712194,0.15630961,62708.0,62688.0,1.22929541]
[1721011712411,0.15363,62708.0,62688.0,1.85999941]
[1721011712616,0.00289341,62704.0,62688.0,1.22929541]
[1721011712848,0.00267961,62700.0,62688.0,1.12929541]
[1721011713073,0.0002138,62704.0,62688.0,1.71643141]
[1721011713278,0.0002138,62704.0,62688.0,1.85999941]
[1721011713488,0.0002138,62704.0,62688.0,1.22929541]
[1721011713690,0.00289341,62704.0,62688.0,1.22929541]
[1721011713888,0.0002138,62704.0,62688.0,1.22929541]
[1721011714122,0.0002138,62704.0,62688.0,1.37286341]
[1721011714789,0.08503,62692.0,62688.0,0.97197502]
[1721011715043,0.08503,62692.0,62688.0,0.94897502]
[1721011716377,0.08503,62692.0,62688.0,1.00629541]
[1721011716849,0.05703,62692.0,62691.0,0.31323502]
[1721011717126,0.05703,62692.0,62691.0,0.63226502]
[1721011717340,0.1,62695.0,62694.0,0.53925541]
[1721011717563,0.0651,62703.0,62702.0,0.08465539]
[1721011717794,0.0651,62703.0,62702.0,0.78020502]
[1721011718828,0.0002138,62704.0,62703.0,0.53925541]
[1721011719049,0.0002138,62704.0,62703.0,0.80089502]
[1721011719742,0.0002138,62704.0,62703.0,0.85821541]
[1721011720350,0.0002138,62704.0,62703.0,1.40174841]
[1721011720553,0.0002138,62704.0,62703.0,1.05821541]
[1721011720888,0.0002138,62704.0,62703.0,0.80089502]
[1721011721294,0.0002138,62704.0,62703.0,0.68951541]
[1721011722113,0.0002138,62704.0,62703.0,0.85821541]
[1721011722919,0.0002138,62704.0,62703.0,0.80089502]
[1721011723128,0.0002138,62704.0,62703.0,0.40361539]
[1721011723129,0.14279341,62704.0,62703.0,0.40361539]
[1721011723489,0.14279341,62704.0,62703.0,0.31896]
[1721011723787,0.24279341,62704.0,62703.0,0.40361539]
[1721011723997,0.24279341,62704.0,62703.0,0.7132474]
[1721011723998,0.2401138,62704.0,62703.0,0.7132474]
[1721011724537,0.1002138,62704.0,62703.0,0.77056779]
[1721011724745,0.0002138,62704.0,62703.0,0.77056779]
[1721011725206,0.0002138,62704.0,62703.0,0.7132474]
[1721011725609,0.0002138,62704.0,62703.0,0.77056779]
[1721011726187,0.0002138,62704.0,62703.0,0.93926779]
[1721011727219,0.0002138,62704.0,62703.0,0.8819474]
[1721011727713,0.0002138,62704.0,62703.0,0.7132474]
[1721011728301,0.0002138,62704.0,62703.0,1.00186779]
[1721011729027,0.0002138,62704.0,62703.0,0.93926779]
[1721011729614,0.0002138,62704.0,62703.0,0.8819474]
[1721011729815,0.0642138,62704.0,62703.0,0.8819474]
[1721011730159,0.0642138,62704.0,62703.0,0.7132474]
[1721011730662,0.0002138,62704.0,62703.0,0.77056779]
[1721011730861,0.0002138,62704.0,62703.0,0.93926779]
[1721011731835,0.0010438,62704.0,62703.0,0.93926779]
[1721011732038,0.0010438,62704.0,62703.0,1.03926779]
[1721011736182,0.0010438,62704.0,62703.0,0.93926779]
[1721011736583,0.0010438,62704.0,62703.0,0.8819474]
[1721011736806,0.0010438,62704.0,62703.0,0.93926779]
[1721011737249,0.0010438,62704.0,62703.0,1.06226779]
[1721011738159,0.0010438,62704.0,62703.0,0.93926779]
[1721011739032,0.0010438,62704.0,62703.0,1.13926779]
[1721011739579,0.0010438,62704.0,62703.0,1.23926779]
[1721011740381,0.0010438,62704.0,62703.0,1.26226779]
[1721011740825,0.0010438,62704.0,62703.0,1.79303479]
[1721011741042,0.0010438,62704.0,62703.0,1.93656779]
[1721011741244,0.0010438,62704.0,62703.0,1.20621541]
[1721011741449,0.0010438,62704.0,62703.0,1.40621541]
[1721011741650,0.0010438,62704.0,62703.0,1.10621541]
[1721011741845,0.0010438,62704.0,62703.0,1.00621541]
[1721011742088,0.0622438,62704.0,62703.0,0.78019502]
[1721011742299,0.14712341,62704.0,62703.0,0.55161539]
[1721011742473,0.24712341,62704.0,62703.0,0.55161539]
[1721011743101,0.24712341,62704.0,62703.0,0.31896]
[1721011743314,0.00267961,62692.0,62690.0,0.148]
[1721011743479,0.00267961,62691.0,62690.0,0.23265539]
[1721011743678,0.00267961,62691.0,62690.0,0.55168539]
[1721011744081,0.20607961,62691.0,62690.0,0.31903]
[1721011744481,0.08487961,62682.0,62681.0,0.08465539]
[1721011744691,0.41271001,62682.0,62681.0,0.08465539]
[1721011745032,0.91271001,62682.0,62681.0,0.40372539]
[1721011745795,0.91271001,62682.0,62681.0,0.31907]
[1721011745796,1.03691001,62682.0,62681.0,0.31907]
[1721011745993,1.03691001,62682.0,62664.0,0.1687]
[1721011745994,0.00267961,62668.0,62667.0,0.08465539]
[1721011746309,0.47857961,62668.0,62667.0,0.08465539]
[1721011746511,0.70317961,62668.0,62667.0,0.40379539]
[1721011746713,0.70317961,62668.0,62667.0,0.31914]
[1721011746938,0.00267961,62657.0,62656.0,0.08465539]
[1721011747115,0.00267961,62657.0,62655.0,0.08465539]
[1721011747116,0.00267961,62656.0,62655.0,0.08465539]
[1721011747312,0.00267961,62654.0,62653.0,0.31323502]
[1721011747687,0.00267961,62654.0,62653.0,0.63245502]
[1721011747854,0.00267961,62654.0,62653.0,0.40387539]
[1721011748056,0.00267961,62654.0,62653.0,0.63245502]
[1721011748317,0.00267961,62654.0,62653.0,0.40387539]
[1721011748536,0.00267961,62654.0,62653.0,0.63245502]
[1721011748866,0.00267961,62654.0,62653.0,0.40387539]
[1721011749069,0.00267961,62654.0,62653.0,0.31922]
[1721011749070,0.20157961,62654.0,62653.0,0.31922]
[1721011749586,0.30157961,62654.0,62653.0,0.31922]
[1721011750189,0.24157961,62654.0,62653.0,0.31922]
[1721011750946,0.30157961,62654.0,62653.0,0.31922]
[1721011751151,0.13214505,62654.0,62653.0,0.31922]
[1721011751434,0.06,62654.0,62653.0,0.31922]
[1721011754199,0.1988,62654.0,62653.0,0.31922]
[1721011754395,0.2988,62654.0,62653.0,0.31922]
[1721011755095,0.2988,62654.0,62647.0,0.000913]
[1721011755096,0.67534461,62648.0,62647.0,0.000913]
[1721011755337,0.06,62630.0,62628.0,0.08465539]
[1721011755547,0.4333304,62630.0,62629.0,0.328492]
[1721011755789,0.5333304,62630.0,62629.0,0.328492]
[1721011755979,0.4733304,62630.0,62629.0,0.328492]
[1721011756454,0.4278304,62630.0,62629.0,0.55707163]
[1721011757085,0.4278304,62630.0,62629.0,0.328492]
[1721011757485,0.4878304,62630.0,62629.0,0.328492]
[1721011758056,0.4878304,62630.0,62611.0,0.08465539]
[1721011758057,0.56,62619.0,62611.0,0.08465539]
[1721011758227,0.06,62617.0,62611.0,0.08465539]
[1721011758461,0.16306353,62618.0,62612.0,0.31942]
[1721011758779,0.06,62615.0,62612.0,0.31942]
[1721011758989,0.12,62604.0,62585.0,0.0629]
[1721011759198,0.12,62601.0,62585.0,0.0629]
[1721011759426,0.1,62600.0,62593.0,0.12]
[1721011759632,0.1,62600.0,62595.0,0.12]
[1721011759859,0.3278304,62604.0,62595.0,0.12]
[1721011759860,0.3278304,62604.0,62603.0,0.12]
[1721011760060,0.3278304,62612.0,62607.0,0.12]
[1721011760327,0.3278304,62612.0,62610.0,0.08105238]
[1721011760328,0.10306353,62611.0,62610.0,0.08105238]
[1721011760451,0.00306353,62611.0,62610.0,0.69238624]
[1721011760656,0.00306353,62616.0,62614.0,0.12]
[1721011760889,0.00306353,62616.0,62615.0,0.31941]
[1721011761089,0.00306353,62616.0,62615.0,0.75131]
[1721011761468,0.01672339,62616.0,62615.0,0.75131]
[1721011761696,0.01672339,62616.0,62615.0,1.138781]
[1721011761892,0.3278304,62638.0,62619.0,0.2887]
[1721011762095,0.01672339,62630.0,62620.0,0.44258304]
[1721011762415,0.00306353,62637.0,62625.0,0.12]
[1721011762617,0.00306353,62637.0,62624.0,0.08105238]
[1721011762618,0.01672339,62629.0,62627.0,0.12]
[1721011762759,0.3278304,62638.0,62628.0,0.32254289]
[1721011763156,0.01672339,62629.0,62628.0,0.32254289]
[1721011763400,0.3278304,62638.0,62628.0,0.32254289]
[1721011763624,0.01672339,62629.0,62628.0,0.32254289]
[1721011763843,0.3278304,62638.0,62628.0,0.32254289]
[1721011764051,0.01672339,62629.0,62628.0,0.32254289]
[1721011764450,0.00083,62630.0,62628.0,0.32254289]
[1721011764650,0.01672339,62629.0,62628.0,0.32254289]
[1721011764872,0.01672339,62629.0,62628.0,0.44254289]
[1721011765085,0.01672339,62629.0,62628.0,0.32254289]
[1721011765231,0.01672339,62629.0,62628.0,0.44254289]
[1721011765889,0.01672339,62629.0,62628.0,0.69004289]
[1721011766289,0.01672339,62629.0,62628.0,0.75664289]
[1721011766484,0.01672339,62629.0,62628.0,0.90034789]
[1721011766665,0.01672339,62629.0,62628.0,0.75664289]
[1721011767754,0.01672339,62629.0,62628.0,1.10034789]
[1721011767966,0.01672339,62629.0,62628.0,1.20034789]
[1721011768160,0.00083,62630.0,62629.0,1.019809]
[1721011768385,0.08401946,62692.0,62641.0,0.919726]
[1721011768386,0.01672339,62642.0,62641.0,0.919726]
[1721011768582,0.01672339,62642.0,62641.0,1.726357]
[1721011768778,0.00306353,62644.0,62641.0,1.726357]
[1721011768779,0.00306353,62644.0,62643.0,1.119713]
[1721011768996,0.5,62676.0,62662.0,0.12]
[1721011769278,0.5,62676.0,62656.0,0.1687]
[1721011769279,0.2182,62658.0,62656.0,0.1687]
[1721011769492,0.12,62671.0,62657.0,0.4879]
[1721011769667,0.39680891,62658.0,62657.0,0.4879]
[1721011770247,0.39680891,62658.0,62657.0,0.3192]
[1721011771101,0.51987244,62658.0,62657.0,0.3192]
[1721011771305,0.51076868,62658.0,62657.0,0.3192]
[1721011771481,0.61076868,62658.0,62657.0,0.3192]
[1721011771875,0.61076868,62658.0,62636.0,0.4863143]
[1721011771876,0.06,62644.0,62636.0,0.4863143]
[1721011772070,0.12,62646.0,62636.0,0.4863143]
[1721011772287,0.1,62645.0,62637.0,0.00319247]
[1721011772482,0.1,62645.0,62637.0,0.31928]
[1721011772683,0.1,62645.0,62638.0,0.00319241]
[1721011772924,0.1,62645.0,62639.0,0.31929]
[1721011773274,0.1,62645.0,62640.0,0.00319239]
[1721011773436,0.1,62645.0,62641.0,0.31928]
[1721011773633,0.1,62645.0,62642.0,0.00319242]
[1721011773835,0.1,62645.0,62643.0,0.31927]
[1721011774041,0.1,62645.0,62644.0,0.00319242]
[1721011774241,0.1,62645.0,62644.0,0.31926]
[1721011774440,0.22,62645.0,62644.0,0.31926]
[1721011774626,0.1,62645.0,62644.0,0.31926]
[1721011777021,0.3278304,62646.0,62644.0,0.39846]
[1721011777628,0.3278304,62646.0,62645.0,0.762199]
[1721011777835,0.71553555,62658.0,62647.0,0.1687]
[1721011778037,0.38770515,62658.0,62657.0,0.312339]
[1721011778232,0.38770515,62658.0,62657.0,1.181317]
[1721011778509,0.38770515,62658.0,62657.0,1.668595]
[1721011778704,0.38770515,62658.0,62657.0,1.649895]
[1721011779017,0.38770515,62658.0,62657.0,1.162617]
[1721011779394,0.38770515,62658.0,62657.0,0.81275238]
[1721011779895,0.38270515,62658.0,62657.0,0.81275238]
[1721011780837,0.38270515,62658.0,62657.0,1.15639138]
[1721011781209,0.38270515,62658.0,62657.0,1.54366938]
[1721011781451,0.38270515,62658.0,62657.0,1.83094738]
[1721011783131,0.38270515,62658.0,62657.0,2.11822538]
[1721011783335,0.01672339,62683.0,62672.0,0.3131]
[1721011783538,0.4,62674.0,62673.0,0.32231045]
[1721011783739,0.387,62674.0,62673.0,0.31912]
[1721011784383,0.387,62674.0,62673.0,1.40902275]
[1721011784541,0.387,62674.0,62673.0,1.22181775]
[1721011784773,0.387,62674.0,62673.0,1.50902275]
[1721011785825,0.387,62674.0,62673.0,1.628832]
[1721011785941,0.01672194,62690.0,62673.0,1.628832]
[1721011785942,0.4,62687.0,62683.0,0.2587]
[1721011786184,0.52,62687.0,62684.0,0.31906]
[1721011786385,0.20105238,62685.0,62684.0,0.31906]
[1721011786590,0.2694,62685.0,62684.0,0.31906]
[1721011786800,0.2694,62685.0,62684.0,0.31806]
[1721011787217,0.5294,62685.0,62684.0,0.31806]
[1721011787420,0.5294,62685.0,62673.0,0.014]
[1721011787421,0.2687,62674.0,62673.0,0.014]
[1721011787623,0.65972151,62674.0,62673.0,0.014]
[1721011787838,0.12,62655.0,62654.0,0.4863143]
[1721011788014,0.2819,62655.0,62654.0,0.4863143]
[1721011788220,0.12,62650.0,62641.0,0.1402]
[1721011788422,0.12,62650.0,62642.0,0.31926]
[1721011788423,0.4478304,62650.0,62642.0,0.31926]
[1721011788656,0.4478304,62650.0,62642.0,0.40926]
[1721011788657,0.3278304,62650.0,62642.0,0.40926]
[1721011788953,0.3278304,62650.0,62642.0,0.31926]
[1721011789327,0.5,62655.0,62643.0,0.00319219]
[1721011789541,0.12,62653.0,62644.0,0.31926]
[1721011789724,0.12,62653.0,62647.0,0.08105238]
[1721011789725,0.3278304,62653.0,62647.0,0.08105238]
[1721011789937,0.4478304,62653.0,62648.0,0.31924]
[1721011790133,0.12,62649.0,62648.0,0.31924]
[1721011790574,0.3278304,62653.0,62648.0,0.31924]
[1721011790750,0.5,62655.0,62652.0,0.08105238]
[1721011790952,0.5,62655.0,62644.0,0.2]
[1721011790953,0.1,62654.0,62653.0,0.31922]
[1721011792818,0.101,62654.0,62653.0,0.32822]
[1721011793266,0.1,62654.0,62653.0,0.31922]
[1721011794725,0.101,62654.0,62653.0,0.32922]
[1721011794926,0.1,62654.0,62653.0,0.31922]
[1721011795474,0.101,62654.0,62653.0,0.32822]
[1721011795766,0.101,62654.0,62653.0,0.31922]
[1721011796022,0.101,62654.0,62653.0,0.32822]
[1721011796221,0.102,62654.0,62653.0,0.329133]
[1721011796435,0.101,62654.0,62653.0,0.320133]
[1721011796635,0.222,62654.0,62653.0,0.329133]
[1721011797596,0.232,62654.0,62653.0,0.329133]
[1721011797774,0.23,62654.0,62653.0,0.320133]
[1721011798136,0.37359111,62654.0,62653.0,0.326133]
[1721011798294,0.37459111,62654.0,62653.0,0.326133]
[1721011798496,0.53459111,62654.0,62653.0,0.320133]
[1721011798701,0.73459111,62654.0,62653.0,0.320133]
[1721011798903,0.69770902,62654.0,62653.0,0.320133]
[1721011799083,0.53359111,62654.0,62653.0,0.320133]
[1721011799491,0.53459111,62654.0,62653.0,0.320133]
[1721011799826,0.53359111,62654.0,62653.0,0.320133]
[1721011800596,0.73359111,62654.0,62653.0,0.320074]
[1721011800779,0.89570902,62654.0,62653.0,0.320074]
[1721011800982,0.73359111,62654.0,62653.0,0.320074]
[1721011801453,0.73339902,62654.0,62653.0,0.320074]
[1721011801632,0.53339902,62654.0,62653.0,0.320074]
[1721011801922,0.62141128,62654.0,62653.0,0.320074]
[1721011802128,0.39012241,62654.0,62653.0,0.320074]
[1721011802331,0.21102339,62654.0,62653.0,0.320074]
[1721011802468,0.14672339,62654.0,62653.0,0.320074]
[1721011804096,0.24672339,62654.0,62653.0,0.320074]
[1721011804293,0.12672339,62654.0,62653.0,0.320074]
[1721011804935,0.24672339,62654.0,62653.0,0.320074]
[1721011805255,0.12672339,62654.0,62653.0,0.320074]
[1721011805433,0.01672339,62654.0,62653.0,0.320074]
[1721011805635,0.4,62655.0,62653.0,0.320074]
[1721011805849,0.4,62655.0,62654.0,0.08105238]
[1721011806042,0.4,62655.0,62654.0,0.70842238]
[1721011807982,0.3167,62655.0,62654.0,1.55236038]
[1721011808183,0.01672339,62661.0,62660.0,0.702332]
[1721011808388,0.01,62683.0,62674.0,0.1687]